fUSD/lending_fUSD_20250826
["ID","MTS","AMOUNT","RATE_DAILY","PERIOD"]
[381397831,1756185099954,-400.0,0.00016986,2]
[381397832,1756185099963,-1226.51,0.00016986,2]
[381397833,1756185099975,-602.69,0.00016986,2]
[381397834,1756185099986,-755.07,0.00016986,2]
[381397835,1756185099995,-1950.58,0.00016986,2]
[381397836,1756185100006,-400.0,0.00016986,2]
[381397837,1756185100017,-400.0,0.00016986,2]
[381397838,1756185100027,-400.0,0.00016986,2]
[381397839,1756185100036,-400.0,0.00016986,2]
[381397840,1756185100045,-912.19,0.00016986,2]
[381397841,1756185100055,-593.98,0.00016986,2]
[381397842,1756185100067,-400.0,0.00016986,2]
[381397843,1756185100078,-400.0,0.00016986,2]
[381397844,1756185100089,-667.81,0.00016986,2]
[381397845,1756185100099,-1068.64,0.00016986,2]
[381397846,1756185100109,-1442.7,0.00016986,2]
[381397847,1756185100119,-1001.68,0.00016986,2]
[381397848,1756185100129,-465.82,0.00016986,2]
[381397849,1756185100139,-400.0,0.00016986,2]
[381397850,1756185100150,-401.9169033,0.00016986,2]
[381397851,1756185100160,-400.0,0.00016986,2]
[381397852,1756185100172,-556.5,0.00016986,2]
[381397853,1756185100182,-995.28,0.00016986,2]
[381397854,1756185100193,-400.0,0.00016986,2]
[381397855,1756185100203,-400.0,0.00016986,2]
[381397856,1756185100212,-401.7394233,0.00016986,2]
[381397857,1756185100222,-400.0,0.00016986,2]
[381397858,1756185100232,-400.0,0.00016986,2]
[381397859,1756185100241,-400.0,0.00016986,2]
[381397860,1756185100251,-400.0,0.00016986,2]
[381397861,1756185100260,-614.94,0.00016986,2]
[381397862,1756185100270,-453.72,0.00016986,2]
[381397863,1756185100281,-400.0,0.00016986,2]
[381397864,1756185100290,-1356.06,0.00016986,2]
[381397865,1756185100299,-997.81,0.00016986,2]
[381397866,1756185100309,-1318.33,0.00016986,2]
[381397867,1756185100319,-433.81,0.00016986,2]
[381397868,1756185100328,-987.69,0.00016986,2]
[381397869,1756185100338,-877.92,0.00016986,2]
[381397870,1756185100347,-400.0,0.00016986,2]
[381397871,1756185100358,-400.0,0.00016986,2]
[381397872,1756185100367,-573.04,0.00016986,2]
[381397873,1756185100377,-1179.01,0.00016986,2]
[381397874,1756185100386,-400.0,0.00016986,2]
[381397875,1756185100396,-400.0,0.00016986,2]
[381397876,1756185100407,-785.57,0.00016986,2]
[381397877,1756185100417,-505.61,0.00016986,2]
[381397878,1756185100427,-680.05,0.00016986,2]
[381397879,1756185100437,-1271.36,0.00016986,2]
[381397880,1756185100446,-1390.13,0.00016986,2]
[381397881,1756185100455,-400.0,0.00016986,2]
[381397882,1756185100465,-400.0,0.00016986,2]
[381397883,1756185100475,-400.0,0.00016986,2]
[381397884,1756185100487,-400.0,0.00016986,2]
[381397885,1756185100497,-1020.92,0.00016986,2]
[381397886,1756185100506,-1438.29,0.00016986,2]
[381397887,1756185100515,-400.0,0.00016986,2]
[381397888,1756185100525,-400.0,0.00016986,2]
[381397889,1756185100535,-400.72980134,0.00016986,2]
[381397890,1756185100545,-400.0,0.00016986,2]
[381397891,1756185100554,-1382.39,0.00016986,2]
[381397892,1756185100564,-652.4,0.00016986,2]
[381397893,1756185100573,-400.0,0.00016986,2]
[381397894,1756185100584,-727.77,0.00016986,2]
[381397895,1756185100595,-400.0,0.00016986,2]
[381397896,1756185100604,-641.19,0.00016986,2]
[381397897,1756185100613,-917.93,0.00016986,2]
[381397898,1756185100624,-400.0,0.00016986,2]
[381397899,1756185100634,-412.69,0.00016986,2]
[381397900,1756185100643,-1456.18,0.00016986,2]
[381397901,1756185100653,-400.0,0.00016986,2]
[381397902,1756185100664,-1444.66,0.00016986,2]
[381397903,1756185100675,-400.0,0.00016986,2]
[381397904,1756185100685,-400.0,0.00016986,2]
[381397905,1756185100695,-497.26,0.00016986,2]
[381397906,1756185100707,-400.0,0.00016986,2]
[381397907,1756185100718,-400.0,0.00016986,2]
[381397908,1756185100729,-400.0,0.00016986,2]
[381397909,1756185100739,-867.81,0.00016986,2]
[381397910,1756185100751,-522.11,0.00016986,2]
[381397911,1756185100760,-400.0,0.00016986,2]
[381397912,1756185100770,-966.54,0.00016986,2]
[381397913,1756185100781,-713.17,0.00016986,2]
[381397914,1756185100790,-1914.21,0.00016986,2]
[381397915,1756185100801,-1358.44,0.00016986,2]
[381397916,1756185100811,-400.0,0.00016986,2]
[381397917,1756185100822,-400.0,0.00016986,2]
[381397918,1756185100833,-539.12,0.00016986,2]
[381397919,1756185100844,-400.0,0.00016986,2]
[381397920,1756185100853,-400.0,0.00016986,2]
[381397921,1756185100862,-400.0,0.00016986,2]
[381397922,1756185100871,-444.72,0.00016986,2]
[381397923,1756185100881,-400.0,0.00016986,2]
[381397924,1756185100890,-400.0,0.00016986,2]
[381397925,1756185100899,-581.34,0.00016986,2]
[381397926,1756185100909,-1327.91,0.00016986,2]
[381397927,1756185100918,-400.0,0.00016986,2]
[381397928,1756185100927,-400.0,0.00016986,2]
[381397929,1756185100937,-1002.01,0.00016986,2]
[381397930,1756185100947,-284.36207182,0.00016986,2]
[381397931,1756185100957,-1548.36,0.00016986,2]
[381397932,1756185100968,-740.16,0.00016986,2]
[381397933,1756185100979,-718.26,0.00016986,2]
[381397934,1756185100989,-666.89,0.00016986,2]
[381397935,1756185100999,-655.8,0.00016986,2]
[381397936,1756185101010,-400.0,0.00016986,2]
[381397937,1756185101020,-400.0,0.00016986,2]
[381397938,1756185101031,-842.3,0.00016986,2]
[381397939,1756185101041,-400.0,0.00016986,2]
[381397940,1756185101052,-842.01,0.00016986,2]
[381397941,1756185101061,-633.57,0.00016986,2]
[381397942,1756185101072,-559.63,0.00016986,2]
[381397943,1756185101082,-201.44956188,0.00016986,2]
[381397944,1756185101091,-400.0,0.00016986,2]
[381397945,1756185101100,-163.1496219,0.00016986,2]
[381397946,1756185101110,-1324.42,0.00016986,2]
[381397947,1756185101121,-400.0,0.00016986,2]
[381397948,1756185101131,-1090.37,0.00016986,2]
[381397949,1756185101140,-400.0,0.00016986,2]
[381397950,1756185101150,-447.3,0.00016986,2]
[381397951,1756185101159,-400.97427663,0.00016986,2]
[381397952,1756185101170,-400.0,0.00016986,2]
[381397953,1756185101180,-845.8,0.00016986,2]
[381397954,1756185101189,-400.0,0.00016986,2]
[381397955,1756185101198,-1580.64,0.00016986,2]
[381397956,1756185101208,-809.1,0.00016986,2]
[381397957,1756185101217,-488.96,0.00016986,2]
[381397958,1756185101227,-1005.05,0.00016986,2]
[381397959,1756185101236,-1402.89,0.00016986,2]
[381397960,1756185101246,-400.0,0.00016986,2]
[381397961,1756185101255,-820.31,0.00016986,2]
[381397962,1756185101267,-1732.57,0.00016986,2]
[381397963,1756185101277,-304.706028,0.00016986,2]
[381397964,1756185101287,-1105.22,0.00016986,2]
[381397965,1756185101296,-4847.14,0.00016986,2]
[381397966,1756185101306,-937.98,0.00016986,2]
[381397967,1756185101316,-400.0,0.00016986,2]
[381397968,1756185101325,-403.62,0.00016986,2]
[381397969,1756185101334,-400.0,0.00016986,2]
[381397970,1756185101344,-400.0,0.00016986,2]
[381397971,1756185101353,-1319.16,0.00016986,2]
[381397972,1756185101362,-426.78,0.00016986,2]
[381397973,1756185101373,-400.0,0.00016986,2]
[381397974,1756185101383,-400.0,0.00016986,2]
[381397975,1756185101393,-1766.75,0.00016986,2]
[381397976,1756185101404,-1066.0,0.00016986,2]
[381397977,1756185101414,-753.45,0.00016986,2]
[381397978,1756185101423,-649.14,0.00016986,2]
[381397979,1756185101432,-400.0,0.00016986,2]
[381397980,1756185101442,-747.83,0.00016986,2]
[381397981,1756185101451,-756.72,0.00016986,2]
[381397982,1756185101461,-400.0,0.00016986,2]
[381397983,1756185101471,-1189.2,0.00016986,2]
[381397984,1756185101480,-400.0,0.00016986,2]
[381397985,1756185101489,-400.0,0.00016986,2]
[381397986,1756185101499,-400.0,0.00016986,2]
[381397987,1756185101509,-1191.47,0.00016986,2]
[381397988,1756185101519,-400.0,0.00016986,2]
[381397989,1756185101528,-1252.53,0.00016986,2]
[381397990,1756185101537,-627.21,0.00016986,2]
[381397991,1756185101547,-597.73,0.00016986,2]
[381397992,1756185101556,-400.36787523,0.00016986,2]
[381397993,1756185101565,-830.56,0.00016986,2]
[381397994,1756185101575,-722.08,0.00016986,2]
[381397995,1756185101586,-1223.08,0.00016986,2]
[381397996,1756185101596,-552.31,0.00016986,2]
[381397997,1756185101607,-400.0,0.00016986,2]
[381397998,1756185101727,-685.95,0.00016986,2]
[381397999,1756185101737,-400.0,0.00016986,2]
[381398000,1756185101747,-910.22,0.00016986,2]
[381398001,1756185101756,-400.0,0.00016986,2]
[381398002,1756185101765,-483.31,0.00016986,2]
[381398003,1756185101774,-681.45,0.00016986,2]
[381398004,1756185101787,-400.0,0.00016986,2]
[381398005,1756185101796,-400.0,0.00016986,2]
[381398006,1756185101808,-1206.92,0.00016986,2]
[381398007,1756185101819,-656.73,0.00016986,2]
[381398008,1756185101831,-1519.76,0.00016986,2]
[381398009,1756185101841,-1276.68,0.00016986,2]
[381398010,1756185101851,-400.0,0.00016986,2]
[381398011,1756185101861,-664.31,0.00016986,2]
[381398012,1756185101873,-1239.44,0.00016986,2]
[381398013,1756185101883,-400.0,0.00016986,2]
[381398014,1756185101893,-1427.09,0.00016986,2]
[381398015,1756185101902,-427.85,0.00016986,2]
[381398016,1756185101912,-901.15,0.00016986,2]
[381398017,1756185101922,-654.96,0.00016986,2]
[381398018,1756185101931,-1652.7,0.00016986,2]
[381398019,1756185101941,-455.14,0.00016986,2]
[381398020,1756185101952,-782.55,0.00016986,2]
[381398021,1756185101961,-1078.81,0.00016986,2]
[381398022,1756185101971,-413.54,0.00016986,2]
[381398023,1756185101981,-1400.81,0.00016986,2]
[381398024,1756185101991,-2582.29,0.00016986,2]
[381398025,1756185102000,-402.24511971,0.00016986,2]
[381398026,1756185102009,-400.0,0.00016986,2]
[381398027,1756185102020,-400.0,0.00016986,2]
[381398028,1756185102029,-1459.27,0.00016986,2]
[381398029,1756185102038,-1085.18,0.00016986,2]
[381398030,1756185102047,-1432.89,0.00016986,2]
[381398031,1756185102057,-402.4764871,0.00016986,2]
[381398032,1756185102066,-400.0,0.00016986,2]
[381398033,1756185102075,-400.0,0.00016986,2]
[381398034,1756185102084,-588.69,0.00016986,2]
[381398035,1756185102094,-434.66,0.00016986,2]
[381398036,1756185102103,-400.0,0.00016986,2]
[381398037,1756185102112,-400.0,0.00016986,2]
[381398038,1756185102122,-400.0,0.00016986,2]
[381398039,1756185102132,-1243.6,0.00016986,2]
[381398040,1756185102142,-400.0,0.00016986,2]
[381398041,1756185102151,-400.0,0.00016986,2]
[381398042,1756185102160,-400.0,0.00016986,2]
[381398043,1756185102170,-1636.08,0.00016986,2]
[381398044,1756185102179,-1259.97,0.00016986,2]
[381398045,1756185102188,-565.23,0.00016986,2]
[381398046,1756185102197,-768.65,0.00016986,2]
[381398047,1756185102206,-986.8,0.00016986,2]
[381398048,1756185102216,-755.27,0.00016986,2]
[381398049,1756185102226,-422.62,0.00016986,2]
[381398050,1756185102236,-400.0,0.00016986,2]
[381398051,1756185102247,-400.0,0.00016986,2]
[381398052,1756185102258,-400.0,0.00016986,2]
[381398053,1756185102267,-716.91,0.00016986,2]
[381398054,1756185102276,-1221.45,0.00016986,2]
[381398055,1756185102286,-1076.56,0.00016986,2]
[381398056,1756185102296,-400.0,0.00016986,2]
[381398057,1756185102306,-465.6,0.00016986,2]
[381398058,1756185102317,-400.0,0.00016986,2]
[381398059,1756185102327,-405.3215669,0.00016986,2]
[381398060,1756185102337,-556.18,0.00016986,2]
[381398061,1756185102347,-511.97,0.00016986,2]
[381398062,1756185102357,-400.0,0.00016986,2]
[381398063,1756185102366,-1132.31,0.00016986,2]
[381398064,1756185102376,-400.0,0.00016986,2]
[381398065,1756185102386,-1566.42,0.00016986,2]
[381398066,1756185102395,-1017.27,0.00016986,2]
[381398067,1756185102405,-400.0,0.00016986,2]
[381398068,1756185102414,-1313.05,0.00016986,2]
[381398069,1756185102423,-687.21,0.00016986,2]
[381398070,1756185102432,-1508.61,0.00016986,2]
[381398071,1756185102441,-592.08,0.00016986,2]
[381398072,1756185102450,-401.9515022,0.00016986,2]
[381398073,1756185102459,-1063.21,0.00016986,2]
[381398074,1756185102468,-1522.2,0.00016986,2]
[381398075,1756185102477,-400.0,0.00016986,2]
[381398076,1756185102486,-400.0,0.00016986,2]
[381398077,1756185102495,-1200.74,0.00016986,2]
[381398078,1756185102504,-701.64,0.00016986,2]
[381398079,1756185102513,-667.18,0.00016986,2]
[381398080,1756185102522,-527.92,0.00016986,2]
[381398081,1756185102532,-400.0,0.00016986,2]
[381398082,1756185102541,-1238.21,0.00016986,2]
[381398083,1756185102550,-400.0,0.00016986,2]
[381398084,1756185102559,-1531.34,0.00016986,2]
[381398085,1756185102569,-839.07,0.00016986,2]
[381398086,1756185102578,-833.94,0.00016986,2]
[381398087,1756185102587,-400.0,0.00016986,2]
[381398088,1756185102595,-885.16,0.00016986,2]
[381398089,1756185102604,-1833.89,0.00016986,2]
[381398090,1756185102615,-400.0,0.00016986,2]
[381398091,1756185102624,-708.49,0.00016986,2]
[381398092,1756185102632,-400.0,0.00016986,2]
[381398093,1756185102642,-400.0,0.00016986,2]
[381398094,1756185102651,-1012.23,0.00016986,2]
[381398095,1756185102660,-400.0,0.00016986,2]
[381398096,1756185102669,-406.06,0.00016986,2]
[381398097,1756185102678,-400.0,0.00016986,2]
[381398098,1756185102687,-181.3071387,0.00016986,2]
[381398099,1756185102696,-400.0,0.00016986,2]
[381398100,1756185102707,-1222.85,0.00016986,2]
[381398101,1756185102718,-1919.78,0.00016986,2]
[381398102,1756185102727,-400.0,0.00016986,2]
[381398103,1756185102736,-400.0,0.00016986,2]
[381398104,1756185102745,-510.89,0.00016986,2]
[381398105,1756185102756,-923.51,0.00016986,2]
[381398106,1756185102765,-400.0,0.00016986,2]
[381398107,1756185102775,-277.71005903,0.00016986,2]
[381398108,1756185102785,-1631.74,0.00016986,2]
[381398109,1756185102795,-1430.22,0.00016986,2]
[381398110,1756185102805,-623.95,0.00016986,2]
[381398111,1756185102814,-972.66,0.00016986,2]
[381398112,1756185102823,-875.91,0.00016986,2]
[381398113,1756185102833,-678.39,0.00016986,2]
[381398114,1756185102842,-911.93,0.00016986,2]
[381398115,1756185102851,-400.0,0.00016986,2]
[381398116,1756185102861,-400.0,0.00016986,2]
[381398117,1756185102872,-1696.44,0.00016986,2]
[381398118,1756185102882,-400.0,0.00016986,2]
[381398119,1756185102892,-400.0,0.00016986,2]
[381398120,1756185102902,-431.92,0.00016986,2]
[381398121,1756185102911,-400.0,0.00016986,2]
[381398122,1756185102921,-772.1,0.00016986,2]
[381398123,1756185102931,-1254.88,0.00016986,2]
[381398124,1756185102943,-466.82,0.00016986,2]
[381398125,1756185102953,-556.57,0.00016986,2]
[381398126,1756185102964,-453.93,0.00016986,2]
[381398127,1756185102973,-400.0,0.00016986,2]
[381398128,1756185102983,-577.23,0.00016986,2]
[381398129,1756185102994,-627.54,0.00016986,2]
[381398130,1756185103003,-630.88,0.00016986,2]
[381398131,1756185103012,-400.0,0.00016986,2]
[381398132,1756185103022,-400.0,0.00016986,2]
[381398133,1756185103032,-400.0,0.00016986,2]
[381398134,1756185103041,-1171.83,0.00016986,2]
[381398135,1756185103052,-400.0,0.00016986,2]
[381398136,1756185103062,-840.99,0.00016986,2]
[381398137,1756185103071,-728.51,0.00016986,2]
[381398138,1756185103080,-507.81,0.00016986,2]
[381398139,1756185103090,-400.0,0.00016986,2]
[381398140,1756185103099,-882.97,0.00016986,2]
[381398141,1756185103109,-400.0,0.00016986,2]
[381398142,1756185103118,-870.8,0.00016986,2]
[381398143,1756185103127,-1126.11,0.00016986,2]
[381398144,1756185103136,-400.0,0.00016986,2]
[381398145,1756185103146,-400.0,0.00016986,2]
[381398146,1756185103155,-1214.94,0.00016986,2]
[381398147,1756185103164,-1417.37,0.00016986,2]
[381398148,1756185103173,-400.0,0.00016986,2]
[381398149,1756185103182,-523.1,0.00016986,2]
[381398150,1756185103191,-1284.26,0.00016986,2]
[381398151,1756185103200,-400.0,0.00016986,2]
[381398152,1756185103210,-1560.06,0.00016986,2]
[381398153,1756185103220,-1212.92,0.00016986,2]
[381398154,1756185103229,-1009.02,0.00016986,2]
[381398155,1756185103238,-619.85,0.00016986,2]
[381398156,1756185103247,-519.8,0.00016986,2]
[381398157,1756185103256,-400.0,0.00016986,2]
[381398158,1756185103265,-689.08,0.00016986,2]
[381398159,1756185103274,-473.64,0.00016986,2]
[381398160,1756185103283,-1130.17,0.00016986,2]
[381398161,1756185103292,-613.11,0.00016986,2]
[381398162,1756185103301,-547.98,0.00016986,2]
[381398163,1756185103311,-491.37,0.00016986,2]
[381398164,1756185103320,-400.0,0.00016986,2]
[381398165,1756185103329,-1204.85,0.00016986,2]
[381398166,1756185103338,-1258.14,0.00016986,2]
[381398167,1756185103347,-400.0,0.00016986,2]
[381398168,1756185103357,-400.0,0.00016986,2]
[381398169,1756185103366,-400.0,0.00016986,2]
[381398170,1756185103375,-400.0,0.00016986,2]
[381398171,1756185103384,-743.23,0.00016986,2]
[381398172,1756185103393,-853.0,0.00016986,2]
[381398173,1756185103402,-1211.77,0.00016986,2]
[381398174,1756185103411,-400.0,0.00016986,2]
[381398175,1756185103420,-1015.19,0.00016986,2]
[381398176,1756185103429,-716.92,0.00016986,2]
[381398177,1756185103439,-1387.66,0.00016986,2]
[381398178,1756185103449,-209.6048374,0.00016986,2]
[381398179,1756185103459,-1320.35,0.00016986,2]
[381398180,1756185103469,-496.44,0.00016986,2]
[381398181,1756185103479,-1252.32,0.00016986,2]
[381398182,1756185103489,-1766.22,0.00016986,2]
[381398183,1756185103498,-1630.14,0.00016986,2]
[381398184,1756185103508,-409.0,0.00016986,2]
[381398185,1756185103517,-400.0,0.00016986,2]
[381398186,1756185103527,-755.04,0.00016986,2]
[381398187,1756185103537,-400.0,0.00016986,2]
[381398188,1756185103546,-343.44875,0.00016986,2]
[381398189,1756185103555,-1037.83,0.00016986,2]
[381398190,1756185103564,-400.0,0.00016986,2]
[381398191,1756185103573,-400.0,0.00016986,2]
[381398192,1756185103583,-860.44,0.00016986,2]
[381398193,1756185103593,-400.0,0.00016986,2]
[381398194,1756185103603,-603.97,0.00016986,2]
[381398195,1756185103614,-1020.12,0.00016986,2]
[381398196,1756185103624,-400.0,0.00016986,2]
[381398197,1756185103633,-400.0,0.00016986,2]
[381398198,1756185103642,-400.0,0.00016986,2]
[381398199,1756185103651,-400.0,0.00016986,2]
[381398200,1756185103660,-1202.85,0.00016986,2]
[381398201,1756185103669,-502.27,0.00016986,2]
[381398202,1756185103677,-518.67,0.00016986,2]
[381398203,1756185103686,-1460.199064,0.00016986,2]
[381398204,1756185103695,-658.4,0.00016986,2]
[381398205,1756185103706,-715.24,0.00016986,2]
[381398206,1756185103716,-400.0,0.00016986,2]
[381398207,1756185103725,-431.95,0.00016986,2]
[381398208,1756185103734,-778.49,0.00016986,2]
[381398209,1756185103742,-497.0,0.00016986,2]
[381398210,1756185103752,-400.0,0.00016986,2]
[381398211,1756185103761,-1377.54,0.00016986,2]
[381398212,1756185103770,-1059.93,0.00016986,2]
[381398213,1756185103779,-1022.45,0.00016986,2]
[381398214,1756185103788,-400.0,0.00016986,2]
[381398215,1756185103798,-773.78,0.00016986,2]
[381398216,1756185103807,-400.0,0.00016986,2]
[381398217,1756185103816,-400.0,0.00016986,2]
[381398218,1756185103825,-400.0,0.00016986,2]
[381398219,1756185103833,-400.0,0.00016986,2]
[381398220,1756185103842,-806.64,0.00016986,2]
[381398221,1756185103851,-1361.84,0.00016986,2]
[381398222,1756185103860,-400.0,0.00016986,2]
[381398223,1756185103869,-400.0,0.00016986,2]
[381398224,1756185103878,-729.3,0.00016986,2]
[381398225,1756185103888,-400.0,0.00016986,2]
[381398226,1756185103897,-400.0,0.00016986,2]
[381398227,1756185103907,-612.91,0.00016986,2]
[381398228,1756185103916,-801.26,0.00016986,2]
[381398229,1756185103925,-7354.8,0.00016986,2]
[381398230,1756185103934,-1291.65,0.00016986,2]
[381398231,1756185103943,-400.0,0.00016986,2]
[381398232,1756185103952,-400.0,0.00016986,2]
[381398233,1756185103961,-900.48,0.00016986,2]
[381398234,1756185103970,-724.77,0.00016986,2]
[381398235,1756185103979,-1042.93,0.00016986,2]
[381398236,1756185103988,-534.68,0.00016986,2]
[381398237,1756185103997,-400.0,0.00016986,2]
[381398238,1756185104006,-400.0,0.00016986,2]
[381398239,1756185104015,-400.0,0.00016986,2]
[381398240,1756185104024,-1108.04,0.00016986,2]
[381398241,1756185104034,-400.0,0.00016986,2]
[381398242,1756185104044,-400.0,0.00016986,2]
[381398243,1756185104053,-672.94,0.00016986,2]
[381398244,1756185104063,-843.77,0.00016986,2]
[381398245,1756185104076,-710.67,0.00016986,2]
[381398246,1756185104087,-713.49,0.00016986,2]
[381398247,1756185104097,-400.0,0.00016986,2]
[381398248,1756185104106,-1603.49,0.00016986,2]
[381398249,1756185104116,-1128.06,0.00016986,2]
[381398250,1756185104127,-817.81,0.00016986,2]
[381398251,1756185104136,-733.84,0.00016986,2]
[381398252,1756185104146,-980.62,0.00016986,2]
[381398253,1756185104156,-400.0,0.00016986,2]
[381398254,1756185104166,-668.01,0.00016986,2]
[381398255,1756185104175,-914.94,0.00016986,2]
[381398256,1756185104186,-4703.96,0.00016986,2]
[381398257,1756185104196,-707.29,0.00016986,2]
[381398258,1756185104206,-400.0,0.00016986,2]
[381398259,1756185104215,-2766.74,0.00016986,2]
[381398260,1756185104224,-515.14,0.00016986,2]
[381398261,1756185104233,-1124.0,0.00016986,2]
[381398262,1756185104245,-1838.31,0.00016986,2]
[381398263,1756185104255,-400.0,0.00016986,2]
[381398264,1756185104264,-1381.47,0.00016986,2]
[381398265,1756185104275,-400.0,0.00016986,2]
[381398266,1756185104285,-400.0,0.00016986,2]
[381398267,1756185104295,-708.62,0.00016986,2]
[381398268,1756185104304,-1148.31,0.00016986,2]
[381398269,1756185104313,-400.0,0.00016986,2]
[381398270,1756185104324,-515.12,0.00016986,2]
[381398271,1756185104334,-400.0,0.00016986,2]
[381398272,1756185104345,-717.61,0.00016986,2]
[381398273,1756185104355,-1440.43,0.00016986,2]
[381398274,1756185104366,-918.74,0.00016986,2]
[381398275,1756185104377,-940.48,0.00016986,2]
[381398276,1756185104387,-400.0,0.00016986,2]
[381398277,1756185104398,-400.0,0.00016986,2]
[381398278,1756185104408,-1374.0,0.00016986,2]
[381398279,1756185104417,-400.0,0.00016986,2]
[381398280,1756185104427,-632.84,0.00016986,2]
[381398281,1756185104436,-1545.82,0.00016986,2]
[381398282,1756185104445,-400.0,0.00016986,2]
[381398283,1756185104454,-400.0,0.00016986,2]
[381398284,1756185104463,-400.0,0.00016986,2]
[381398285,1756185104472,-529.08,0.00016986,2]
[381398286,1756185104482,-777.79,0.00016986,2]
[381398287,1756185104491,-692.1,0.00016986,2]
[381398288,1756185104500,-889.12,0.00016986,2]
[381398289,1756185104509,-522.6,0.00016986,2]
[381398290,1756185104519,-889.33,0.00016986,2]
[381398291,1756185104528,-400.0,0.00016986,2]
[381398292,1756185104538,-900.86,0.00016986,2]
[381398293,1756185104547,-1844.71,0.00016986,2]
[381398294,1756185104557,-400.0,0.00016986,2]
[381398295,1756185104567,-570.5,0.00016986,2]
[381398296,1756185104577,-1112.62,0.00016986,2]
[381398297,1756185104587,-400.0,0.00016986,2]
[381398298,1756185104597,-698.74,0.00016986,2]
[381398299,1756185104607,-400.0,0.00016986,2]
[381398300,1756185104616,-1194.81,0.00016986,2]
[381398301,1756185104625,-646.67,0.00016986,2]
[381398302,1756185104634,-401.08809215,0.00016986,2]
[381398303,1756185104643,-400.0,0.00016986,2]
[381398304,1756185104653,-400.0,0.00016986,2]
[381398305,1756185104662,-799.24,0.00016986,2]
[381398306,1756185104671,-400.0,0.00016986,2]
[381398307,1756185104680,-639.24,0.00016986,2]
[381398308,1756185104689,-712.45,0.00016986,2]
[381398309,1756185104698,-400.0,0.00016986,2]
[381398310,1756185104711,-649.29,0.00016986,2]
[381398311,1756185104720,-694.05,0.00016986,2]
[381398312,1756185104729,-1372.88,0.00016986,2]
[381398313,1756185104738,-435.22,0.00016986,2]
[381398314,1756185104748,-893.58,0.00016986,2]
[381398315,1756185104757,-835.85,0.00016986,2]
[381398316,1756185104767,-477.45,0.00016986,2]
[381398317,1756185104776,-820.22,0.00016986,2]
[381398318,1756185104787,-1349.89,0.00016986,2]
[381398319,1756185104796,-1046.15,0.00016986,2]
[381398320,1756185104805,-1164.46,0.00016986,2]
[381398321,1756185104814,-1295.44,0.00016986,2]
[381398322,1756185104823,-1159.52,0.00016986,2]
[381398323,1756185104832,-502.61,0.00016986,2]
[381398324,1756185104841,-215.35310863,0.00016986,2]
[381398325,1756185104850,-400.0,0.00016986,2]
[381398326,1756185104859,-400.0,0.00016986,2]
[381398327,1756185104869,-400.0,0.00016986,2]
[381398328,1756185104879,-400.0,0.00016986,2]
[381398329,1756185104889,-721.88,0.00016986,2]
[381398330,1756185104899,-555.93,0.00016986,2]